fUSD/lending_fUSD_20250209
["ID","MTS","AMOUNT","RATE_DAILY","PERIOD"]
[352415787,1739091050318,-500.0,0.00010133,2]
[352415788,1739091050328,-500.0,0.00010133,2]
[352415789,1739091050340,-531.97,0.00010133,2]
[352415790,1739091050350,-500.0,0.00010133,2]
[352415791,1739091050359,-500.0,0.00010133,2]
[352415792,1739091050368,-899.22,0.00010133,2]
[352415793,1739091050378,-500.0,0.00010133,2]
[352415794,1739091050387,-500.0,0.00010133,2]
[352415795,1739091050396,-500.0,0.00010133,2]
[352415796,1739091050405,-659.84,0.00010133,2]
[352415797,1739091050414,-500.0,0.00010133,2]
[352415798,1739091050424,-500.0,0.00010133,2]
[352415799,1739091050433,-500.0,0.00010133,2]
[352415800,1739091050442,-500.0,0.00010133,2]
[352415801,1739091050452,-500.0,0.00010133,2]
[352415802,1739091050461,-500.0,0.00010133,2]
[352415803,1739091050470,-965.84,0.00010133,2]
[352415804,1739091050479,-500.0,0.00010133,2]
[352415805,1739091050489,-500.0,0.00010133,2]
[352415806,1739091050498,-500.0,0.00010133,2]
[352415807,1739091050507,-500.0,0.00010133,2]
[352415808,1739091050516,-555.57,0.00010133,2]
[352415809,1739091050525,-500.0,0.00010133,2]
[352415810,1739091050535,-500.0,0.00010133,2]
[352415811,1739091050544,-500.0,0.00010133,2]
[352415812,1739091050554,-500.0,0.00010133,2]
[352415813,1739091050563,-500.0,0.00010133,2]
[352415814,1739091050572,-500.0,0.00010133,2]
[352415815,1739091050581,-500.0,0.00010133,2]
[352415816,1739091050591,-500.0,0.00010133,2]
[352415817,1739091050603,-501.5930805,0.00010133,2]
[352415818,1739091050612,-583.36,0.00010133,2]
[352415819,1739091050622,-500.0,0.00010133,2]
[352415820,1739091050631,-500.0,0.00010133,2]
[352415821,1739091050647,-500.0,0.00010133,2]
[352415822,1739091050656,-508.67,0.00010133,2]
[352415823,1739091050666,-500.0,0.00010133,2]
[352415824,1739091050675,-500.0,0.00010133,2]
[352415825,1739091050684,-500.0,0.00010133,2]
[352415826,1739091050694,-500.0,0.00010133,2]
[352415827,1739091050702,-562.37457578,0.00010133,2]
[352415828,1739091050712,-500.0,0.00010133,2]
[352415829,1739091050721,-500.0,0.00010133,2]
[352415830,1739091050731,-500.0,0.00010133,2]
[352415831,1739091050740,-500.0,0.00010133,2]
[352415832,1739091050749,-500.0,0.00010133,2]
[352415833,1739091050759,-633.13,0.00010133,2]
[352415834,1739091050770,-500.0,0.00010133,2]
[352415835,1739091050781,-500.0,0.00010133,2]
[352415836,1739091050790,-500.0,0.00010133,2]
[352415837,1739091050800,-567.7,0.00010133,2]
[352415838,1739091050810,-500.0,0.00010133,2]
[352415839,1739091050820,-500.0,0.00010133,2]
[352415840,1739091050829,-500.0,0.00010133,2]
[352415841,1739091050839,-500.0,0.00010133,2]
[352415842,1739091050849,-576.66,0.00010133,2]
[352415843,1739091050858,-500.0,0.00010133,2]
[352415844,1739091050868,-500.0,0.00010133,2]
[352415845,1739091050877,-500.0,0.00010133,2]
[352415846,1739091050888,-791.06,0.00010133,2]
[352415847,1739091050897,-500.0,0.00010133,2]
[352415848,1739091050906,-500.0,0.00010133,2]
[352415849,1739091050915,-500.0,0.00010133,2]
[352415850,1739091050925,-558.88,0.00010133,2]
[352415851,1739091050934,-500.0,0.00010133,2]
[352415852,1739091050943,-500.0,0.00010133,2]
[352415853,1739091050952,-500.0,0.00010133,2]
[352415854,1739091050961,-500.0,0.00010133,2]
[352415855,1739091050970,-587.99,0.00010133,2]
[352415856,1739091050979,-500.0,0.00010133,2]
[352415857,1739091050988,-502.13438114,0.00010133,2]
[352415858,1739091050997,-500.0,0.00010133,2]
[352415859,1739091051007,-503.30181591,0.00010133,2]
[352415860,1739091051015,-500.0,0.00010133,2]
[352415861,1739091051026,-500.0,0.00010133,2]
[352415862,1739091051036,-500.0,0.00010133,2]
[352415863,1739091051045,-605.59986152,0.00010133,2]
[352415864,1739091051055,-157.83,0.00010137,2]
[352415865,1739091051066,-302.41,0.00010137,2]
[352415866,1739091051075,-233.88,0.00010137,2]
[352415867,1739091051085,-500.0,0.00010164,2]
[352415868,1739091051094,-500.0,0.00010191,2]
[352415869,1739091051103,-500.0,0.00010191,2]
[352415870,1739091051112,-500.0,0.00010191,2]
[352415871,1739091051122,-500.0,0.00010191,2]
[352415872,1739091051131,-500.0,0.00010191,2]
[352415873,1739091051140,-500.0,0.00010191,2]
[352415874,1739091051150,-500.0,0.00010191,2]
[352415875,1739091051159,-500.0,0.00010191,2]
[352415876,1739091051168,-500.0,0.00010191,2]
[352415877,1739091051178,-500.0,0.00010191,2]
[352415878,1739091051188,-500.0,0.00010191,2]
[352415879,1739091051198,-500.0,0.00010191,2]
[352415880,1739091051208,-500.0,0.00010191,2]
[352415881,1739091051218,-500.0,0.00010191,2]
[352415882,1739091051227,-500.0,0.00010191,2]
[352415883,1739091051238,-500.0,0.00010191,2]
[352415884,1739091051247,-500.0,0.00010191,2]
[352415885,1739091051257,-500.0,0.00010191,2]
[352415886,1739091051266,-500.0,0.00010191,2]
[352415887,1739091051275,-500.0,0.00010191,2]
[352415888,1739091051284,-500.0,0.00010198,2]
[352415889,1739091051293,-512.59283199,0.00010198,2]
[352415890,1739091051303,-500.0,0.00010198,2]
[352415891,1739091051312,-192.37,0.000102,2]
[352415892,1739091051321,-621144.13723136,0.00010207,2]
[352415893,1739091051331,-498.2893221,0.00010226,2]
[352415894,1739091051343,-1290.37,0.00010268,2]
[352415895,1739091051352,-1232.73,0.00010268,2]
[352415896,1739091051362,-650.98,0.00010268,2]
[352415897,1739091051370,-936.12,0.00010268,2]
[352415898,1739091051380,-887.89,0.00010268,2]
[352415899,1739091051391,-812.49,0.00010268,2]
[352415900,1739091051400,-1619.99,0.00010268,2]
[352415901,1739091051410,-500.0,0.00010268,2]
[352415902,1739091051420,-1614.19,0.00010268,2]
[352415903,1739091051430,-1286.74,0.00010268,2]
[352415904,1739091051440,-500.0,0.00010268,2]
[352415905,1739091051449,-606.94,0.00010268,2]
[352415906,1739091051459,-1486.51,0.00010268,2]
[352415907,1739091051468,-1746.19,0.00010268,2]
[352415908,1739091051478,-1788.17,0.00010268,2]
[352415909,1739091051487,-1449.34,0.00010268,2]
[352415910,1739091051497,-626.77,0.00010268,2]
[352415911,1739091051506,-1644.83,0.00010268,2]
[352415912,1739091051516,-500.0,0.00010268,2]
[352415913,1739091051526,-1769.26,0.00010268,2]
[352415914,1739091051535,-727.7,0.00010268,2]
[352415915,1739091051545,-500.0,0.00010268,2]
[352415916,1739091051554,-500.0,0.00010268,2]
[352415917,1739091051564,-500.0,0.00010268,2]
[352415918,1739091051573,-1201.81,0.00010268,2]
[352415919,1739091051583,-1437.52,0.00010268,2]
[352415920,1739091051593,-659.24,0.00010268,2]
[352415921,1739091051602,-500.0,0.00010268,2]
[352415922,1739091051611,-688.72,0.00010268,2]
[352415923,1739091051621,-823.78,0.00010268,2]
[352415924,1739091051630,-500.0,0.00010268,2]
[352415925,1739091051640,-393.879823,0.00010269,2]
[352415926,1739091051649,-251.91712,0.00010269,2]
[352415927,1739091051658,-500.0,0.00010269,2]
[352415928,1739091051668,-500.0,0.00010269,2]
[352415929,1739091051677,-500.0,0.00010269,2]
[352415930,1739091051687,-500.0,0.00010269,2]
[352415931,1739091051696,-500.0,0.00010269,2]
[352415932,1739091051706,-500.09,0.00010269,2]
[352415933,1739091051716,-500.0,0.00010269,2]
[352415934,1739091051725,-500.0,0.00010269,2]
[352415935,1739091051735,-500.0,0.00010269,2]
[352415936,1739091051744,-507.52,0.00010269,2]
[352415937,1739091051754,-500.0,0.00010269,2]
[352415938,1739091051763,-500.0,0.00010269,2]
[352415939,1739091051772,-500.0,0.00010269,2]
[352415940,1739091051782,-500.0,0.00010269,2]
[352415941,1739091051791,-500.0,0.00010269,2]
[352415942,1739091051800,-500.0,0.00010269,2]
[352415943,1739091051809,-608.75,0.00010269,2]
[352415944,1739091051818,-500.0,0.00010269,2]
[352415945,1739091051828,-500.0,0.00010269,2]
[352415946,1739091051994,-500.0,0.00010269,2]
[352415947,1739091052004,-500.0,0.00010269,2]
[352415948,1739091052013,-500.0,0.00010269,2]
[352415949,1739091052022,-500.0,0.00010269,2]
[352415950,1739091052032,-500.0,0.00010269,2]
[352415951,1739091052041,-500.0,0.00010269,2]
[352415952,1739091052050,-500.0,0.00010269,2]
[352415953,1739091052059,-500.0,0.00010269,2]
[352415954,1739091052069,-500.0,0.00010269,2]
[352415955,1739091052079,-500.0,0.00010269,2]
[352415956,1739091052089,-500.0,0.00010269,2]
[352415957,1739091052099,-500.0,0.00010269,2]
[352415958,1739091052110,-500.0,0.00010269,2]
[352415959,1739091052120,-500.0,0.00010269,2]
[352415960,1739091052130,-500.0,0.00010269,2]
[352415961,1739091052140,-650.23,0.00010269,2]
[352415962,1739091052149,-500.0,0.00010269,2]
[352415963,1739091052158,-500.0,0.00010269,2]
[352415964,1739091052167,-500.0,0.00010269,2]
[352415965,1739091052177,-500.0,0.00010269,2]
[352415966,1739091052186,-695.23,0.00010269,2]
[352415967,1739091052196,-500.0,0.00010269,2]
[352415968,1739091052205,-500.0,0.00010269,2]
[352415969,1739091052215,-500.0,0.00010269,2]
[352415970,1739091052224,-500.0,0.00010269,2]
[352415971,1739091052234,-674.96,0.00010269,2]
[352415972,1739091052243,-513.36,0.00010269,2]
[352415973,1739091052252,-500.0,0.00010269,2]
[352415974,1739091052261,-578.86,0.00010269,2]
[352415975,1739091052270,-500.0,0.00010269,2]
[352415976,1739091052280,-500.0,0.00010269,2]
[352415977,1739091052289,-435.95,0.00010269,2]
[352415978,1739091052298,-500.0,0.00010269,2]
[352415979,1739091052307,-500.0,0.00010269,2]
[352415980,1739091052316,-500.0,0.00010269,2]
[352415981,1739091052326,-500.0,0.00010269,2]
[352415982,1739091052338,-821.75,0.00010269,2]
[352415983,1739091052347,-500.0,0.00010269,2]
[352415984,1739091052356,-500.0,0.00010269,2]
[352415985,1739091052365,-500.0,0.00010269,2]
[352415986,1739091052374,-500.0,0.00010269,2]
[352415987,1739091052384,-328.47964389,0.00010269,2]
[352415988,1739091052393,-500.0,0.00010269,2]
[352415989,1739091052402,-500.0,0.00010269,2]
[352415990,1739091052411,-608.97,0.00010269,2]
[352415991,1739091052421,-500.0,0.00010269,2]
[352415992,1739091052430,-500.0,0.00010269,2]
[352415993,1739091052440,-340.89044306,0.00010269,2]
[352415994,1739091052448,-500.0,0.00010269,2]
[352415995,1739091052457,-500.0,0.00010269,2]
[352415996,1739091052466,-500.0,0.00010269,2]
[352415997,1739091052476,-685.97,0.00010269,2]
[352415998,1739091052487,-500.0,0.00010269,2]
[352415999,1739091052496,-500.0,0.00010269,2]
[352416000,1739091052506,-500.0,0.00010269,2]
[352416001,1739091052516,-500.0,0.00010269,2]
[352416002,1739091052525,-562.27,0.00010269,2]
[352416003,1739091052534,-578.63,0.00010269,2]
[352416004,1739091052543,-834.9,0.00010269,2]
[352416005,1739091052552,-566.01,0.00010269,2]
[352416006,1739091052561,-738.92,0.00010269,2]
[352416007,1739091052570,-500.0,0.00010269,2]
[352416008,1739091052579,-500.0,0.00010269,2]
[352416009,1739091052589,-500.0,0.00010269,2]
[352416010,1739091052598,-500.0,0.00010269,2]
[352416011,1739091052607,-500.0,0.00010269,2]
[352416012,1739091052616,-776.51,0.00010269,2]
[352416013,1739091052625,-500.0,0.00010269,2]
[352416014,1739091052635,-500.0,0.00010269,2]
[352416015,1739091052644,-500.0,0.00010269,2]
[352416016,1739091052653,-1288.32,0.00010269,2]
[352416017,1739091052662,-577.78,0.00010269,2]
[352416018,1739091052672,-638.7,0.00010269,2]
[352416019,1739091052681,-1745.54,0.00010269,2]
[352416020,1739091052691,-500.0,0.00010269,2]
[352416021,1739091052701,-500.0,0.00010269,2]
[352416022,1739091052710,-500.0,0.00010269,2]
[352416023,1739091052719,-500.0,0.00010269,2]
[352416024,1739091052728,-535.29397655,0.00010269,2]
[352416025,1739091052740,-500.0,0.00010269,2]
[352416026,1739091052749,-500.0,0.00010269,2]
[352416027,1739091052759,-500.0,0.00010269,2]
[352416028,1739091052768,-500.0,0.00010269,2]
[352416029,1739091052777,-1627.73,0.00010269,2]
[352416030,1739091052787,-500.0,0.00010269,2]
[352416031,1739091052796,-665.6,0.00010269,2]
[352416032,1739091052805,-867.43,0.00010269,2]
[352416033,1739091052814,-500.0,0.00010269,2]
[352416034,1739091052823,-1117.36,0.00010269,2]
[352416035,1739091052833,-604.35,0.00010269,2]
[352416036,1739091052843,-500.0,0.00010269,2]
[352416037,1739091052853,-500.0,0.00010269,2]
[352416038,1739091052864,-777.07,0.00010269,2]
[352416039,1739091052874,-500.0,0.00010269,2]
[352416040,1739091052883,-500.0,0.00010269,2]
[352416041,1739091052892,-904.72,0.00010269,2]
[352416042,1739091052901,-500.0,0.00010269,2]
[352416043,1739091052911,-1668.55,0.00010269,2]
[352416044,1739091052920,-1180.27,0.00010269,2]
[352416045,1739091052929,-688.38,0.00010269,2]
[352416046,1739091052939,-717.19,0.00010269,2]
[352416047,1739091052948,-500.0,0.00010269,2]
[352416048,1739091052957,-500.0,0.00010269,2]
[352416049,1739091052966,-1358.37,0.00010269,2]
[352416050,1739091052975,-500.0,0.00010269,2]
[352416051,1739091052985,-802.51,0.00010269,2]
[352416052,1739091052995,-500.0,0.00010269,2]
[352416053,1739091053004,-867.71,0.00010269,2]
[352416054,1739091053012,-1367.13,0.00010269,2]
[352416055,1739091053021,-500.0,0.00010269,2]
[352416056,1739091053031,-500.0,0.00010269,2]
[352416057,1739091053039,-981.98,0.00010269,2]
[352416058,1739091053048,-500.0,0.00010269,2]
[352416059,1739091053058,-500.0,0.00010269,2]
[352416060,1739091053067,-619.0,0.00010269,2]
[352416061,1739091053076,-956.3,0.00010269,2]
[352416062,1739091053085,-500.0,0.00010269,2]
[352416063,1739091053095,-500.0,0.00010269,2]
[352416064,1739091053104,-500.0,0.00010269,2]
[352416065,1739091053113,-500.0,0.00010269,2]
[352416066,1739091053123,-2554.42,0.00010269,2]
[352416067,1739091053132,-500.0,0.00010269,2]
[352416068,1739091053141,-503.88096176,0.00010269,2]
[352416069,1739091053151,-1258.47,0.00010269,2]
[352416070,1739091053160,-500.0,0.00010269,2]
[352416071,1739091053169,-500.0,0.00010269,2]
[352416072,1739091053178,-518.82,0.00010269,2]
[352416073,1739091053187,-802.42,0.00010269,2]
[352416074,1739091053196,-3620.78,0.00010269,2]
[352416075,1739091053205,-500.0,0.00010269,2]
[352416076,1739091053214,-1445.92,0.00010269,2]
[352416077,1739091053223,-500.0,0.00010269,2]
[352416078,1739091053233,-500.0,0.00010269,2]
[352416079,1739091053242,-1822.37,0.00010269,2]
[352416080,1739091053251,-702.66,0.00010269,2]
[352416081,1739091053259,-946.79,0.00010269,2]
[352416082,1739091053270,-744.37,0.00010269,2]
[352416083,1739091053280,-500.0,0.00010269,2]
[352416084,1739091053289,-4051.93,0.00010269,2]
[352416085,1739091053298,-525.36,0.00010269,2]
[352416086,1739091053307,-500.0,0.00010269,2]
[352416087,1739091053316,-500.0,0.00010269,2]
[352416088,1739091053326,-1471.81,0.00010269,2]
[352416089,1739091053335,-500.0,0.00010269,2]
[352416090,1739091053345,-1636.45,0.00010269,2]
[352416091,1739091053354,-500.0,0.00010269,2]
[352416092,1739091053363,-1735.1,0.00010269,2]
[352416093,1739091053371,-566.52,0.00010269,2]
[352416094,1739091053381,-500.0,0.00010269,2]
[352416095,1739091053390,-500.0,0.00010269,2]
[352416096,1739091053399,-832.65,0.00010269,2]
[352416097,1739091053407,-1964.0,0.00010269,2]
[352416098,1739091053419,-505.60942792,0.00010269,2]
[352416099,1739091053430,-500.0,0.00010269,2]
[352416100,1739091053439,-500.0,0.00010269,2]
[352416101,1739091053449,-727.53,0.00010269,2]
[352416102,1739091053458,-693.75,0.00010269,2]
[352416103,1739091053467,-500.0,0.00010269,2]
[352416104,1739091053476,-500.0,0.00010269,2]
[352416105,1739091053486,-553.98,0.00010269,2]
[352416106,1739091053495,-500.0,0.00010269,2]
[352416107,1739091053504,-500.0,0.00010269,2]
[352416108,1739091053514,-500.0,0.00010269,2]
[352416109,1739091053523,-500.0,0.00010269,2]
[352416110,1739091053533,-5574.69,0.00010269,2]
[352416111,1739091053542,-518.08,0.00010269,2]
[352416112,1739091053551,-500.0,0.00010269,2]
[352416113,1739091053560,-500.0,0.00010269,2]
[352416114,1739091053569,-500.0,0.00010269,2]
[352416115,1739091053578,-1246.38,0.00010269,2]
[352416116,1739091053587,-500.0,0.00010269,2]
[352416117,1739091053597,-575.4,0.00010269,2]
[352416118,1739091053606,-2077.5,0.00010269,2]
[352416119,1739091053615,-500.0,0.00010269,2]
[352416120,1739091053624,-590.49,0.00010269,2]
[352416121,1739091053633,-500.0,0.00010269,2]
[352416122,1739091053643,-500.0,0.00010269,2]
[352416123,1739091053652,-500.0,0.00010269,2]
[352416124,1739091053661,-336.79904158,0.00010269,2]
[352416125,1739091053670,-336.0820788,0.00010269,2]
[352416126,1739091053679,-500.0,0.00010269,2]
[352416127,1739091053689,-879.95,0.00010269,2]
[352416128,1739091053698,-500.0,0.00010269,2]
[352416129,1739091053707,-500.0,0.00010269,2]
[352416130,1739091053717,-1758.47,0.00010269,2]
[352416131,1739091053726,-4113.67,0.00010269,2]
[352416132,1739091053737,-1944.52,0.00010269,2]
[352416133,1739091053746,-501.53518462,0.00010269,2]
[352416134,1739091053755,-500.0,0.00010269,2]
[352416135,1739091053765,-500.0,0.00010269,2]
[352416136,1739091053774,-500.0,0.00010269,2]
[352416137,1739091053782,-500.0,0.00010269,2]
[352416138,1739091053792,-850.95,0.00010269,2]
[352416139,1739091053801,-500.0,0.00010269,2]
[352416140,1739091053810,-500.0,0.00010269,2]
[352416141,1739091053820,-1021.42,0.00010269,2]
[352416142,1739091053829,-500.0,0.00010269,2]
[352416143,1739091053842,-500.0,0.00010269,2]
[352416144,1739091053861,-521.26488086,0.00010269,2]
[352416145,1739091053872,-500.0,0.00010269,2]
[352416146,1739091053881,-500.0,0.00010269,2]
[352416147,1739091053890,-934.84,0.00010269,2]
[352416148,1739091053900,-649.07,0.00010269,2]
[352416149,1739091053909,-500.0,0.00010269,2]
[352416150,1739091053919,-1250.2,0.00010269,2]
[352416151,1739091053928,-1837.9,0.00010269,2]
[352416152,1739091053937,-500.0,0.00010269,2]
[352416153,1739091053950,-588.04,0.00010269,2]
[352416154,1739091053959,-660.9,0.00010269,2]
[352416155,1739091053969,-500.0,0.00010269,2]
[352416156,1739091053980,-509.80795102,0.00010269,2]
[352416157,1739091053989,-500.0,0.00010269,2]
[352416158,1739091053998,-1000.0,0.00010269,2]
[352416159,1739091054007,-500.0,0.00010269,2]
[352416160,1739091054017,-1865.73,0.00010269,2]
[352416161,1739091054026,-500.0,0.00010269,2]
[352416162,1739091054036,-555.72,0.00010269,2]
[352416163,1739091054045,-922.44,0.00010269,2]
[352416164,1739091054055,-766.88,0.00010269,2]
[352416165,1739091054064,-500.0,0.00010269,2]
[352416166,1739091054074,-500.0,0.00010269,2]
[352416167,1739091054084,-500.57582173,0.00010269,2]
[352416168,1739091054094,-500.0,0.00010269,2]
[352416169,1739091054103,-537.62265886,0.00010269,2]
[352416170,1739091054112,-1431.33,0.00010269,2]
[352416171,1739091054120,-500.0,0.00010269,2]
[352416172,1739091054129,-506.84268259,0.00010269,2]
[352416173,1739091054139,-500.0,0.00010269,2]
[352416174,1739091054147,-752.6,0.00010269,2]
[352416175,1739091054156,-500.0,0.00010269,2]
[352416176,1739091054165,-500.0,0.00010269,2]
[352416177,1739091054174,-569.66191055,0.00010269,2]
[352416178,1739091054183,-500.0,0.00010269,2]
[352416179,1739091054192,-500.0,0.00010269,2]
[352416180,1739091054201,-853.68,0.00010269,2]
[352416181,1739091054210,-500.0,0.00010269,2]
[352416182,1739091054219,-719.67,0.00010269,2]
[352416183,1739091054228,-500.0,0.00010269,2]
[352416184,1739091054237,-500.0,0.00010269,2]
[352416185,1739091054246,-500.0,0.00010269,2]
[352416186,1739091054255,-500.0,0.00010269,2]
[352416187,1739091054264,-500.0,0.00010269,2]
[352416188,1739091054273,-500.0,0.00010269,2]
[352416189,1739091054282,-500.0,0.00010269,2]
[352416190,1739091054291,-500.0,0.00010269,2]
[352416191,1739091054300,-1767.87,0.00010269,2]
[352416192,1739091054308,-500.0,0.00010269,2]
[352416193,1739091054317,-500.0,0.00010269,2]
[352416194,1739091054327,-1213.21,0.00010269,2]
[352416195,1739091054337,-500.0,0.00010269,2]
[352416196,1739091054346,-577.07,0.00010269,2]
[352416197,1739091054355,-640.43263369,0.00010269,2]
[352416198,1739091054364,-500.0,0.00010269,2]
[352416199,1739091054374,-725.85,0.00010269,2]
[352416200,1739091054384,-500.0,0.00010269,2]
[352416201,1739091054393,-500.0,0.00010269,2]
[352416202,1739091054403,-500.0,0.00010269,2]
[352416203,1739091054413,-651.35,0.00010269,2]
[352416204,1739091054423,-500.0,0.00010269,2]
[352416205,1739091054432,-500.0,0.00010269,2]
[352416206,1739091054443,-500.0,0.00010269,2]
[352416207,1739091054451,-500.0,0.00010269,2]
[352416208,1739091054460,-500.0,0.00010269,2]
[352416209,1739091054470,-500.0,0.00010269,2]
[352416210,1739091054479,-646.11564181,0.00010269,2]
[352416211,1739091054489,-228.46992603,0.00010269,2]
[352416212,1739091054498,-908.97,0.00010269,2]
[352416213,1739091054508,-500.0,0.00010269,2]
[352416214,1739091054517,-1213.08,0.00010269,2]
[352416215,1739091054526,-500.0,0.00010269,2]
[352416216,1739091054535,-232.58236937,0.00010269,2]
[352416217,1739091054544,-979.77,0.00010269,2]
[352416218,1739091054554,-500.0,0.00010269,2]
[352416219,1739091054563,-500.0,0.00010269,2]
[352416220,1739091054573,-500.0,0.0001027,2]
[352416221,1739091054582,-500.0,0.0001027,2]
[352416222,1739091054591,-500.0,0.0001027,2]
[352416223,1739091054600,-500.0,0.0001027,2]
[352416224,1739091054609,-500.0,0.0001027,2]
[352416225,1739091054619,-500.0,0.0001027,2]
[352416226,1739091054628,-500.0,0.0001027,2]
[352416227,1739091054782,-500.0,0.0001027,2]
[352416228,1739091054792,-500.0,0.0001027,2]
[352416229,1739091054802,-500.0,0.0001027,2]
[352416230,1739091054812,-500.0,0.0001027,2]
[352416231,1739091054822,-500.0,0.0001027,2]
[352416232,1739091054831,-500.0,0.0001027,2]
[352416233,1739091054840,-672.04,0.0001027,2]
[352416234,1739091054849,-500.0,0.0001027,2]
[352416235,1739091054859,-500.0,0.0001027,2]
[352416236,1739091054868,-500.0,0.0001027,2]
[352416237,1739091054877,-500.0,0.0001027,2]
[352416238,1739091054886,-500.0,0.0001027,2]
[352416239,1739091054895,-500.0,0.0001027,2]
[352416240,1739091054904,-229.88589284,0.0001027,2]
[352416241,1739091054913,-500.0,0.0001027,2]
[352416242,1739091054922,-500.0,0.0001027,2]
[352416243,1739091054931,-500.0,0.0001027,2]
[352416244,1739091054940,-500.0,0.0001027,2]
[352416245,1739091054950,-500.0,0.0001027,2]
[352416246,1739091054959,-500.0,0.0001027,2]
[352416247,1739091054968,-500.0,0.0001027,2]
[352416248,1739091054977,-500.0,0.0001027,2]
[352416249,1739091054987,-500.0,0.0001027,2]
[352416250,1739091054997,-500.0,0.0001027,2]
[352416251,1739091055006,-500.0,0.0001027,2]
[352416252,1739091055015,-500.0,0.0001027,2]
[352416253,1739091055024,-500.0,0.0001027,2]
[352416254,1739091055033,-500.0,0.0001027,2]
[352416255,1739091055042,-500.0,0.0001027,2]
[352416256,1739091055051,-500.0,0.0001027,2]
[352416257,1739091055060,-500.0,0.0001027,2]
[352416258,1739091055069,-500.0,0.0001027,2]
[352416259,1739091055078,-500.0,0.0001027,2]
[352416260,1739091055087,-500.0,0.0001027,2]
[352416261,1739091055097,-500.0,0.0001027,2]
[352416262,1739091055106,-500.0,0.0001027,2]
[352416263,1739091055115,-500.0,0.0001027,2]
[352416264,1739091055124,-500.0,0.0001027,2]
[352416265,1739091055133,-500.0,0.0001027,2]
[352416266,1739091055142,-500.0,0.0001027,2]
[352416267,1739091055151,-500.0,0.0001027,2]
[352416268,1739091055160,-500.0,0.0001027,2]
[352416269,1739091055170,-500.0,0.0001027,2]
[352416270,1739091055179,-500.0,0.0001027,2]
[352416271,1739091055188,-500.0,0.0001027,2]
[352416272,1739091055197,-500.0,0.0001027,2]
[352416273,1739091055206,-500.0,0.0001027,2]
[352416274,1739091055217,-500.0,0.0001027,2]
[352416275,1739091055226,-500.0,0.0001027,2]
[352416276,1739091055236,-500.0,0.0001027,2]
[352416277,1739091055245,-500.0,0.0001027,2]
[352416278,1739091055254,-511.43657719,0.0001027,2]
[352416279,1739091055263,-500.0,0.0001027,2]
[352416280,1739091055272,-500.0,0.0001027,2]
[352416281,1739091055281,-500.0,0.0001027,2]
[352416282,1739091055290,-500.0,0.0001027,2]
[352416283,1739091055299,-500.0,0.0001027,2]
[352416284,1739091055308,-500.0,0.0001027,2]
[352416285,1739091055317,-500.0,0.0001027,2]
[352416286,1739091055328,-734.25,0.0001027,2]